bitfinex/quotes_ETHUSD_20250622
["timestamp","ask_amount","ask_price","bid_price","bid_amount"]
[1750620873144,10.8066,2188.6,2188.0,4.5703826]
[1750620873945,10.8066,2188.6,2187.9,5.41937989]
[1750620874542,10.8066,2188.6,2187.6,4.57107478]
[1750620874543,0.0566,2188.5,2187.6,4.57107478]
[1750620874759,0.0566,2188.3,2187.6,4.57111644]
[1750620874944,10.0,2188.2,2187.5,7.03845964]
[1750620875160,10.0,2188.2,2187.6,4.57121097]
[1750620875314,10.23888533,2188.2,2187.5,7.03845015]
[1750620875841,0.777,2188.1,2187.5,2.46712491]
[1750620876048,0.777,2188.1,2187.5,7.03843604]
[1750620876254,0.777,2188.1,2187.5,7.09923604]
[1750620876552,0.8336,2188.1,2187.5,6.23716225]
[1750620877224,0.8336,2188.1,2187.5,1.66582491]
[1750620878764,0.8336,2188.1,2187.6,4.57118267]
[1750620878950,0.0566,2188.0,2187.5,1.66582491]
[1750620879763,0.777,2188.1,2187.6,0.0608]
[1750620879925,0.8336,2188.1,2187.6,0.0608]
[1750620880527,0.777,2188.1,2187.6,0.0608]
[1750620880732,0.0566,2188.0,2187.6,0.0608]
[1750620881065,0.23888533,2188.2,2187.7,5.34797763]
[1750620881767,0.23888533,2188.2,2187.7,0.7771]
[1750620881955,0.23888533,2188.2,2187.7,5.34810988]
[1750620882158,0.23888533,2188.2,2187.8,4.57070196]
[1750620882356,0.23888533,2188.2,2187.9,4.57052658]
[1750620882992,0.23888533,2188.2,2188.0,4.57031144]
[1750620883194,0.23888533,2188.2,2188.1,0.7771]
[1750620883715,0.23888533,2188.2,2188.1,5.34727503]
[1750620884003,0.23888533,2188.2,2188.1,6.33903946]
[1750620884703,0.7743,2188.7,2188.2,4.56976138]
[1750620884902,0.23885841,2188.4,2188.3,4.56975734]
[1750620885511,0.23885841,2188.4,2188.3,4.61544822]
[1750620885714,13.863,2189.3,2188.6,5.39675733]
[1750620885893,0.23883829,2188.9,2188.7,0.53967573]
[1750620886098,2.886,2189.3,2188.6,5.39680764]
[1750620886395,0.23882186,2188.9,2188.6,5.39680764]
[1750620886705,2.886,2189.3,2188.7,0.0608]
[1750620887013,0.23882111,2188.8,2188.7,14.62972219]
[1750620887212,0.78,2189.6,2189.2,4.56775613]
[1750620887387,0.78,2189.9,2189.5,0.0608]
[1750620888005,0.23875785,2189.8,2189.5,0.0608]
[1750620889771,0.23875785,2189.8,2189.5,4.56722988]
[1750620890106,0.23875785,2189.8,2189.6,0.0608]
[1750620891007,10.0,2190.0,2189.3,0.0608]
[1750620891212,10.0,2190.0,2189.3,5.63088237]
[1750620892114,2.8888,2190.1,2189.4,0.04566616]
[1750620892311,10.0,2190.0,2189.3,4.56755963]
[1750620892513,10.0,2190.0,2189.2,0.8277]
[1750620892514,10.0582,2190.0,2189.2,0.8277]
[1750620892697,10.0582,2190.0,2189.2,5.39547087]
[1750620892894,10.0582,2190.0,2189.3,5.10718622]
[1750620893515,10.0582,2190.0,2189.3,0.53954709]
[1750620893846,10.0582,2190.0,2188.9,4.5684842]
[1750620893847,0.0582,2189.6,2188.9,4.5684842]
[1750620893977,0.0582,2189.6,2188.7,7.44559485]
[1750620893978,17.8082,2189.6,2188.8,4.56860017]
[1750620894314,17.62266376,2189.6,2188.8,4.56860017]
[1750620894514,17.62266376,2189.6,2188.9,5.31302364]
[1750620894720,10.0,2189.6,2189.1,4.56796031]
[1750620895321,10.0,2189.6,2189.2,4.56787848]
[1750620895836,0.7828,2189.7,2189.3,4.56766294]
[1750620896699,10.0,2189.9,2189.3,4.56766294]
[1750620896903,10.0,2189.9,2189.2,5.33967829]
[1750620896904,0.7828,2189.9,2189.4,0.99073412]
[1750620897308,0.7828,2189.9,2189.4,5.55808647]
[1750620898136,0.5,2189.7,2189.4,5.55808647]
[1750620898338,0.5,2189.7,2189.5,4.56725057]
[1750620898646,0.5,2189.7,2189.4,5.55813884]
[1750620898947,10.0,2190.0,2189.5,5.12304196]
[1750620899315,10.0,2190.0,2189.5,0.55581388]
[1750620900339,10.63,2190.3,2189.7,0.7888]
[1750620900549,2.882,2190.3,2189.7,0.7888]
[1750620900736,0.777,2190.1,2189.0,0.7888]
[1750620900943,0.8352,2189.8,2189.1,2.105]
[1750620901244,0.777,2189.8,2189.2,4.56774544]
[1750620901455,0.777,2189.8,2189.1,2.105]
[1750620901619,0.777,2189.8,2189.0,0.7888]
[1750620901814,0.777,2189.8,2189.2,4.56785699]
[1750620902018,0.777,2189.8,2189.3,4.61331707]
[1750620902321,0.777,2189.8,2189.4,4.56733168]
[1750620902531,0.777,2189.8,2189.1,0.82067506]
[1750620902719,0.777,2189.8,2189.2,4.56777744]
[1750620903253,0.777,2189.8,2189.3,4.56766736]
[1750620903557,0.777,2189.8,2189.4,4.5674531]
[1750620903859,0.777,2190.0,2189.3,4.56759024]
[1750620904013,0.777,2190.0,2189.4,4.56730362]
[1750620904213,0.777,2190.0,2189.5,0.45673036]
[1750620906164,0.777,2190.0,2189.2,4.5677846]
[1750620906371,0.777,2190.0,2189.3,0.058]
[1750620906661,0.23874551,2189.9,2189.5,0.058]
[1750620909978,0.23874551,2189.9,2189.4,4.56731734]
[1750620910275,0.23874551,2189.9,2189.7,0.058]
[1750620910879,0.23874551,2189.9,2189.7,0.60200496]
[1750620911040,0.23874551,2189.9,2189.4,0.8148]
[1750620911375,0.7767,2189.8,2189.3,4.56767003]
[1750620911574,0.7767,2189.8,2189.2,6.66678927]
[1750620911875,0.7767,2189.8,2189.3,4.56752642]
[1750620912372,0.23874551,2189.9,2189.6,4.56703283]
[1750620912709,9.842,2190.4,2189.6,4.56703283]
[1750620912710,0.7767,2190.4,2189.7,0.53818328]
[1750620912974,0.2387166,2190.0,2189.7,0.53818328]
[1750620913178,0.7767,2190.4,2189.7,0.53818328]
[1750620913339,0.23871601,2190.0,2189.7,0.53818328]
[1750620913539,0.7767,2190.4,2189.7,5.10490701]
[1750620913739,0.7767,2190.4,2189.7,2.63718328]
[1750620913951,0.804,2189.9,2189.7,2.099]
[1750620914150,0.804,2189.9,2189.3,2.099]
[1750620914387,1.0427355,2189.9,2189.3,4.56762458]
[1750620914585,1.0427355,2189.9,2189.2,7.48274]
[1750620914763,1.0427355,2189.9,2189.3,4.56765184]
[1750620914959,1.0427355,2189.9,2189.4,1.20503918]
[1750620915776,1.0427355,2189.9,2189.2,2.9149]
[1750620915777,1.0427355,2189.9,2189.3,4.56766783]
[1750620916286,1.0427355,2189.9,2189.2,2.9149]
[1750620916467,1.0427355,2189.9,2189.3,0.058]
[1750620916670,1.0427355,2189.9,2189.3,4.62563612]
[1750620917290,1.0427355,2189.9,2189.3,0.058]
[1750620917487,1.0427355,2189.9,2189.3,6.61070867]
[1750620918690,1.0427355,2189.9,2189.5,0.058]
[1750620918888,1.0427355,2189.9,2189.4,4.5674614]
[1750620919091,1.0427355,2189.9,2189.5,4.67071284]
[1750620919294,1.0427355,2189.9,2189.8,0.058]
[1750620919593,1.0427355,2189.9,2189.4,4.56732355]
[1750620919793,1.0427355,2189.9,2189.5,1.11199907]
[1750620919998,1.0427355,2189.9,2189.6,0.058]
[1750620920658,1.0427355,2189.9,2189.5,5.6792428]
[1750620920862,1.0427355,2189.9,2189.6,4.62502534]
[1750620921389,1.0427355,2189.9,2189.5,5.679153]
[1750620921695,1.0427355,2189.9,2189.6,1.02465278]
[1750620922821,1.0427355,2189.9,2189.3,1.98507005]
[1750620923098,1.0427355,2189.9,2189.3,6.55273296]
[1750620923297,0.5,2189.7,2189.3,6.55273296]
[1750620923470,0.5,2189.7,2189.3,1.98507005]
[1750620923860,0.5,2189.7,2189.3,4.56753548]
[1750620924063,1.0427355,2189.9,2189.3,4.56753548]
[1750620924513,1.0427355,2189.9,2189.2,14.40475857]
[1750620924683,1.0427355,2189.9,2189.3,4.56767003]
[1750620924885,1.0427355,2189.9,2189.5,4.56723339]
[1750620925182,1.0427355,2189.9,2189.5,5.4807118]
[1750620925380,1.0427355,2189.9,2189.5,1.66647841]
[1750620925381,0.2387355,2189.9,2189.5,1.66647841]
[1750620925569,0.2387355,2189.9,2189.5,4.56718842]
[1750620926302,0.2387355,2189.9,2189.4,0.058]
[1750620926612,0.2387355,2189.9,2189.5,0.058]
[1750620928197,0.2387355,2189.9,2189.7,4.56672433]
[1750620928397,0.2387355,2189.9,2189.5,0.058]
[1750620928398,1.0044355,2189.9,2189.5,0.058]
[1750620928904,1.0044355,2189.9,2189.0,17.16637146]
[1750620928905,0.7657,2189.8,2189.0,1.62407978]
[1750620929074,0.8264,2189.6,2189.0,2.93938176]
[1750620929403,14.91249195,2189.7,2189.0,1.62407978]
[1750620929600,0.0607,2189.5,2189.0,1.62407978]
[1750620929897,0.7974,2189.2,2189.0,1.62407978]
[1750620930270,0.0607,2189.1,2189.0,1.62407978]
[1750620931295,0.8581,2189.1,2189.0,1.62407978]
[1750620931669,0.7974,2189.1,2189.0,1.62407978]
[1750620932724,0.8581,2189.1,2189.0,1.62407978]
[1750620932902,1.94391,2189.1,2189.0,1.62407978]
[1750620933084,37.24040195,2189.1,2189.0,1.62407978]
[1750620933283,37.24040195,2189.1,2187.4,10.975]
[1750620933284,0.8505,2188.7,2187.7,5.39023694]
[1750620933629,0.7898,2188.6,2188.2,4.56994427]
[1750620933921,0.7898,2188.6,2188.0,4.57028931]
[1750620934217,0.7898,2188.6,2187.7,0.8194]
[1750620934509,0.8505,2188.5,2188.0,18.0]
[1750620935401,0.7898,2188.5,2188.0,18.0]
[1750620936304,0.8505,2188.5,2188.0,18.058]
[1750620936706,0.7905,2188.3,2187.8,0.058]
[1750620937114,0.7905,2188.3,2187.6,12.30616328]
[1750620937115,0.8512,2188.3,2187.6,0.058]
[1750620937316,0.8512,2188.3,2187.4,1.61317468]
[1750620937317,0.0607,2188.1,2187.4,1.61317468]
[1750620937529,0.7905,2188.0,2187.4,1.61317468]
[1750620938318,0.7905,2188.0,2187.5,4.57132064]
[1750620938521,0.7905,2188.0,2187.4,1.61317468]
[1750620938728,0.7905,2187.8,2187.4,1.55517468]
[1750620938876,0.7905,2187.8,2187.5,4.57142857]
[1750620939101,0.7905,2188.0,2187.7,0.058]
[1750620939501,0.7905,2188.0,2187.6,0.67066033]
[1750620939802,0.7905,2188.0,2187.6,18.57066033]
[1750620940118,0.0607,2187.9,2187.6,18.0]
[1750620940513,0.7905,2187.8,2187.6,18.0]
[1750620940710,12.099,2188.2,2187.6,18.0]
[1750620940711,0.7905,2188.2,2187.6,18.0]
[1750620940913,10.0,2188.5,2187.6,18.0]
[1750620940914,0.7905,2188.0,2187.6,18.0]
[1750620941120,0.8512,2188.0,2187.6,18.0]
[1750620941321,0.7905,2188.0,2187.6,18.0]
[1750620941831,0.7905,2188.0,2187.4,1.55517468]
[1750620942201,0.7905,2187.8,2187.4,1.55517468]
[1750620942506,0.8512,2187.8,2187.4,1.55517468]
[1750620943347,0.7905,2187.8,2187.4,1.55517468]
[1750620943503,0.0607,2187.7,2187.4,1.55517468]
[1750620944313,0.7905,2187.8,2187.4,1.55517468]
[1750620944516,10.7905,2187.8,2187.4,1.55517468]
[1750620944836,0.7905,2187.8,2187.4,6.1266429]
[1750620945037,0.23871219,2187.9,2187.5,4.57132305]
[1750620945247,0.23871219,2187.9,2187.4,1.55517468]
[1750620945536,0.23871219,2187.9,2187.5,4.57141536]
[1750620945698,0.23871219,2187.9,2187.5,5.36071536]
[1750620945907,0.23871219,2187.9,2187.6,4.61689066]
[1750620946099,0.23871219,2187.9,2187.8,4.62880171]
[1750620946300,0.23871219,2187.9,2187.8,0.058]
[1750620946506,0.23871219,2187.9,2187.8,4.62880171]
[1750620946913,0.23871219,2187.9,2187.8,0.058]
[1750620948155,0.23871219,2187.9,2187.5,0.7893]
[1750620948357,0.23871219,2187.9,2187.6,0.058]
[1750620948656,0.7724,2187.8,2187.5,0.058]
[1750620949318,0.23871219,2187.9,2187.6,4.57111054]
[1750620949531,0.23871219,2187.9,2187.8,0.058]
[1750620951040,0.23871219,2187.9,2187.8,4.62880171]
[1750620951357,0.23871219,2187.9,2187.8,0.058]
[1750620953132,0.23871219,2187.9,2187.7,0.8114]
[1750620953479,0.23871219,2187.9,2187.8,0.0602]
[1750620955349,0.23871219,2187.9,2187.4,4.43177468]
[1750620955673,0.29561219,2187.9,2187.4,1.61537468]
[1750620955974,0.23871219,2187.9,2187.5,0.0602]
[1750620956168,1.34348341,2187.9,2187.5,0.0602]
[1750620956370,1.34348341,2187.9,2187.4,1.55517468]
[1750620956952,1.21468605,2187.9,2187.4,1.55517468]
[1750620957154,0.0569,2187.8,2187.4,1.55517468]
[1750620957336,0.7742,2187.7,2187.4,1.55517468]
[1750620958677,0.0569,2187.6,2187.4,1.55517468]
[1750620959176,0.7742,2187.7,2187.4,1.55517468]
[1750620959378,0.0569,2187.6,2187.4,1.55517468]
[1750620959558,0.7742,2187.5,2187.4,1.55517468]
[1750620961478,0.99893491,2187.8,2187.5,0.0602]
[1750620961857,0.7602,2188.3,2187.8,4.57070338]
[1750620962195,0.99889548,2188.3,2188.0,0.0602]
[1750620962373,0.99889548,2188.3,2187.7,0.8176]
[1750620962886,0.99889548,2188.3,2187.8,4.57080073]
[1750620963084,0.99889548,2188.3,2187.9,4.61627409]
[1750620963244,0.99889548,2188.3,2187.7,5.3885157]
[1750620963584,0.99889548,2188.3,2187.9,0.0602]
[1750620964575,0.14300048,2188.2,2187.9,0.0602]
[1750620964776,0.14300061,2188.1,2187.8,0.99596861]
[1750620964978,0.99889548,2188.3,2187.8,0.99596861]
[1750620965294,0.14300447,2188.2,2188.0,0.0602]
[1750620965482,0.14299894,2188.1,2187.6,4.57111809]
[1750620965681,0.99889548,2188.3,2187.7,0.04570442]
[1750620965848,0.14300053,2188.2,2187.8,4.63096604]
[1750620966050,0.99889548,2188.3,2187.9,0.0602]
[1750620966266,0.14299954,2188.2,2187.6,14.57113004]
[1750620966467,0.99889548,2188.3,2187.9,0.0602]
[1750620966673,0.14299884,2188.2,2187.9,0.0602]
[1750620966853,0.99889548,2188.3,2188.0,0.0602]
[1750620967078,0.14299854,2188.2,2188.0,0.0602]
[1750620967273,0.14299854,2188.1,2187.6,10.0]
[1750620967486,0.99889548,2188.3,2187.8,0.0602]
[1750620967651,0.99889548,2188.3,2187.9,4.5704681]
[1750620967854,0.99889548,2188.3,2188.1,0.0602]
[1750620968166,0.23869548,2188.3,2188.1,0.0602]
[1750620969097,0.23869548,2188.3,2188.0,0.0602]
[1750620969291,0.23869548,2188.3,2187.9,0.0602]
[1750620969787,0.23869548,2188.3,2187.8,5.35209109]
[1750620970084,0.23869548,2188.3,2188.0,0.0602]
[1750620972252,0.23869548,2188.3,2187.9,4.57057554]
[1750620972449,0.23869548,2188.3,2187.8,5.35211071]
[1750620972688,0.14299133,2188.2,2187.8,5.35211071]
[1750620972897,0.23869548,2188.3,2187.9,0.66396507]
[1750620973106,0.14299141,2188.2,2187.9,0.66396507]
[1750620973295,0.23869548,2188.3,2187.9,0.66396507]
[1750620973608,0.1429919,2188.2,2187.8,0.7814]
[1750620973781,0.23869548,2188.3,2187.8,0.7814]
[1750620973976,0.14298961,2188.2,2187.8,0.7814]
[1750620974306,0.23869548,2188.3,2187.8,0.7814]
[1750620974710,13.8552,2188.9,2188.2,5.37216618]
[1750620974868,3.11788688,2188.9,2188.3,0.53721662]
[1750620975073,0.14297351,2188.8,2188.3,5.10695592]
[1750620975398,0.14297351,2188.7,2188.4,4.61517427]
[1750620975577,0.23868688,2188.9,2188.5,4.56932872]
[1750620975777,0.14295696,2188.8,2188.5,4.56932872]
[1750620975973,0.23868688,2188.9,2188.6,1.25763287]
[1750620976203,0.14295654,2188.8,2188.7,0.0602]
[1750620976716,7.731,2189.3,2188.7,0.0602]
[1750620976717,2.09,2189.4,2188.7,0.0602]
[1750620977005,1.00926437,2189.1,2188.5,0.0602]
[1750620977170,0.14295329,2189.0,2188.4,4.56953298]
[1750620977375,1.00926437,2189.1,2188.6,0.0602]
[1750620977607,0.14294958,2189.0,2188.5,1.36384496]
[1750620977812,1.00926437,2189.1,2188.6,0.0602]
[1750620978121,1.00926437,2189.1,2188.7,4.56874388]
[1750620978275,1.00926437,2189.1,2188.5,3.45384496]
[1750620978611,0.14295224,2189.0,2188.5,3.51404496]
[1750620978787,1.00926437,2189.1,2188.6,0.86855344]
[1750620978987,0.14295247,2189.0,2188.6,0.86855344]
[1750620979296,0.90926437,2189.1,2188.7,0.0602]
[1750620979691,0.90926437,2189.1,2188.7,0.04568526]
[1750620980023,0.90926437,2189.1,2188.8,0.0602]
[1750620980228,0.96616437,2189.1,2188.5,1.36384496]
[1750620980512,0.0569,2188.9,2188.3,0.53721662]
[1750620980877,0.0569,2188.9,2188.3,0.59741662]
[1750620981076,0.0569,2188.9,2188.1,2.9709]
[1750620981396,0.0569,2188.7,2187.9,0.8106]
[1750620981578,0.0569,2188.7,2187.9,10.8106]
[1750620981994,0.7791,2188.6,2188.0,4.57035278]
[1750620982509,0.7791,2188.6,2187.9,0.8106]
[1750620982812,0.7791,2188.6,2188.0,0.74713096]
[1750620983202,0.0601,2188.5,2188.0,0.74713096]
[1750620983398,0.0601,2188.5,2187.8,10.0]
[1750620983707,0.7791,2188.4,2187.8,12.09]
[1750620986112,0.7791,2188.4,2187.9,0.7922]
[1750620986414,0.7791,2188.4,2187.7,10.0]
[1750620986415,0.8392,2188.4,2187.7,10.0]
[1750620986591,0.7791,2188.4,2187.8,4.61649772]
[1750620986790,0.7791,2188.4,2187.9,1.46164977]
[1750620987412,0.8392,2188.4,2187.9,1.46164977]
[1750620987889,0.7791,2188.4,2187.9,6.03210994]
[1750620988090,0.7791,2188.4,2187.9,1.46164977]
[1750620989111,0.8392,2188.4,2187.9,1.46164977]
[1750620989688,0.7791,2188.4,2187.7,10.0]
[1750620989987,0.8392,2188.4,2187.7,10.0]
[1750620990317,0.14300144,2188.3,2187.7,10.0]
[1750620990617,0.8392,2188.4,2187.7,10.0]
[1750620991119,0.14300123,2188.3,2187.7,14.57088431]
[1750620991313,0.8392,2188.4,2187.8,4.07331129]
[1750620991517,0.8392,2188.4,2187.6,21.5912]
[1750620991818,0.14300478,2188.3,2187.6,18.43641882]
[1750620991995,0.14300478,2188.2,2187.6,18.43641882]
[1750620992191,0.0601,2188.4,2187.6,18.43641882]
[1750620992505,0.9045081,2188.3,2187.6,13.073]
[1750620992704,0.0601,2188.0,2187.4,1.55517468]
[1750620992897,0.7615,2188.1,2187.4,1.55517468]
[1750620992898,0.14302955,2187.9,2187.4,1.55517468]
[1750620993088,0.14302955,2187.8,2187.4,1.55517468]
[1750620993288,0.7615,2188.1,2187.4,1.55517468]
[1750620993520,0.14302933,2188.0,2187.5,0.6126835]
[1750620993715,0.14302933,2187.9,2187.4,1.55517468]
[1750620994014,0.14302933,2187.8,2187.4,1.55517468]
[1750620994218,1.20791794,2188.1,2187.4,1.55517468]
[1750620994530,0.14303018,2188.0,2187.4,1.55517468]
[1750620994817,1.20791794,2188.1,2187.4,1.55517468]
[1750620994818,0.9045299,2187.9,2187.4,1.55517468]
[1750620995120,0.1430299,2187.8,2187.4,1.55517468]
[1750620995286,0.7615,2187.9,2187.4,2.71069215]
[1750620995485,0.14303376,2187.8,2187.4,2.71069215]
[1750620995719,0.7615,2187.9,2187.4,2.71069215]
[1750620995919,0.8001,2188.4,2187.6,4.57111713]
[1750620996119,0.14301362,2188.3,2187.7,4.57091514]
[1750620996304,0.14301362,2188.2,2187.8,0.66609151]
[1750620996623,0.14301362,2188.1,2187.9,0.0609]
[1750620996920,1.24721428,2188.4,2187.9,0.0609]
[1750620997118,0.14301045,2188.3,2187.9,0.0609]
[1750620997319,0.184803,2188.0,2187.9,0.0609]
[1750620997528,0.32781454,2188.0,2187.9,0.0609]
[1750620997897,2.16948883,2189.7,2187.9,5.4358928]
[1750620998098,1.36938883,2189.7,2189.1,15.43338734]
[1750620998441,0.0601,2189.8,2189.2,2.1509]
[1750620998610,0.8001,2190.0,2189.2,2.09]
[1750620998611,0.0601,2189.6,2189.2,2.09]
[1750620998939,10.0,2189.9,2189.2,4.56783651]
[1750620999238,0.14291071,2189.8,2189.2,4.56783651]
[1750620999404,0.14291071,2189.7,2189.2,4.56783651]
[1750620999604,10.0601,2189.9,2189.2,4.62873651]
[1750620999816,10.0,2189.9,2189.3,0.0609]
[1750621000109,2.8901,2190.0,2189.6,0.0609]
[1750621000110,0.8001,2190.0,2189.6,0.0609]
[1750621000314,0.8001,2190.0,2189.7,0.0609]
[1750621000904,0.8001,2190.0,2189.7,4.56683068]
[1750621001101,10.0,2190.3,2189.6,0.04566791]
[1750621001102,0.8001,2190.3,2189.9,0.0609]
[1750621001306,0.8001,2190.3,2189.6,0.04566791]
[1750621001307,0.8001,2190.3,2190.0,4.56605916]
[1750621001504,0.8001,2190.3,2190.1,0.0609]
[1750621001702,0.8001,2190.7,2190.1,4.62689683]
[1750621001916,1.09592,2190.7,2190.2,4.56576304]
[1750621002115,0.8001,2190.7,2190.4,0.0609]
[1750621002321,0.8001,2190.7,2190.5,0.0609]
[1750621002534,0.8001,2190.7,2190.3,0.10655451]
[1750621002735,0.8001,2190.7,2190.4,4.56521705]
[1750621002965,0.8001,2190.7,2190.4,4.56534173]
[1750621003241,0.8001,2191.0,2190.3,4.5654042]
[1750621003409,0.8001,2191.0,2190.4,4.6717778]
[1750621003615,0.8001,2191.0,2190.5,4.56512934]
[1750621003815,0.8001,2191.0,2190.5,4.62602934]
[1750621004028,0.8001,2191.0,2190.6,0.04564832]
[1750621004226,0.8223,2191.3,2190.7,0.0609]
[1750621004425,0.8223,2191.3,2190.7,4.62562796]
[1750621004744,0.8223,2191.3,2190.8,0.04564261]
[1750621004946,0.8223,2191.3,2191.0,0.0609]
[1750621005115,2.097,2191.6,2190.9,0.8013]
[1750621005320,2.38773,2191.6,2191.1,4.56386813]
[1750621005520,0.7502,2191.7,2191.0,14.97339195]
[1750621005751,0.7502,2191.7,2191.5,4.62397353]
[1750621005931,0.0601,2192.2,2191.5,4.62397353]
[1750621005932,0.7502,2192.1,2191.5,4.66946666]
[1750621006748,0.7502,2192.1,2191.5,0.0609]
[1750621006924,0.7502,2192.1,2191.5,2.1579]
[1750621007128,1.31949878,2192.0,2191.5,0.0609]
[1750621007541,1.31949878,2192.0,2191.4,4.624027]
[1750621008049,1.31949878,2192.0,2191.5,4.56305373]
[1750621008257,0.23846878,2192.0,2191.7,0.0609]
[1750621008437,0.23846878,2192.0,2191.7,4.62343192]
[1750621008638,0.23846878,2192.0,2191.8,0.0609]
[1750621009556,0.8238,2192.4,2191.8,0.0609]
[1750621009740,0.23844712,2192.2,2191.9,0.0609]
[1750621009946,0.23844712,2192.2,2191.9,4.66872934]
[1750621010155,0.23844712,2192.2,2192.0,0.0609]
[1750621010325,0.23844712,2192.2,2192.1,0.0609]
[1750621012327,0.8245,2192.7,2192.1,0.10651225]
[1750621012524,0.8245,2192.7,2191.9,5.02947918]
[1750621012525,0.23841137,2192.5,2191.9,5.02947918]
[1750621012751,0.23841137,2192.5,2192.0,2.096]
[1750621012940,0.062,2192.4,2192.0,2.096]
[1750621013538,0.23841137,2192.5,2192.0,2.096]
[1750621014036,0.30041137,2192.5,2192.0,2.096]
[1750621014239,0.23841137,2192.5,2192.1,4.60735509]
[1750621014450,0.23841137,2192.5,2192.1,4.56173792]
[1750621014761,0.23841137,2192.5,2192.2,4.60723515]
[1750621014983,0.23841137,2192.5,2192.2,0.04561071]
[1750621015130,0.23841137,2192.5,2192.1,2.095]
[1750621015331,0.30041137,2192.5,2192.1,2.095]
[1750621015763,0.30041137,2192.5,2192.0,2.095]
[1750621015970,0.062,2192.4,2192.0,2.095]
[1750621016355,0.23841137,2192.5,2192.1,0.04561265]
[1750621016554,0.23841137,2192.5,2192.3,0.0572]
[1750621017429,0.23841137,2192.5,2192.1,0.0572]
[1750621018247,0.23841137,2192.5,2192.1,4.61902321]
[1750621018440,0.23841137,2192.5,2192.4,0.0572]
[1750621018881,0.23841137,2192.5,2192.4,4.61841145]
[1750621019163,10.0,2192.9,2192.6,0.0572]
[1750621019164,0.23846764,2192.9,2192.6,0.0572]
[1750621019359,0.23846764,2192.9,2192.2,5.33396776]
[1750621019360,0.23846764,2192.9,2192.5,0.04560343]
[1750621019551,0.23846764,2192.9,2192.6,0.0572]
[1750621019752,0.23846764,2192.9,2192.4,6.65509559]
[1750621019753,0.23846764,2192.9,2192.7,0.0572]
[1750621019952,0.23846764,2192.9,2192.5,0.0572]
[1750621020156,0.23846764,2192.9,2192.6,0.0572]
[1750621020338,0.23846764,2192.9,2192.5,1.8990658]
[1750621020564,0.23846764,2192.9,2192.7,0.10280021]
[1750621020760,0.23846764,2192.9,2192.7,0.04560021]
[1750621020962,0.7637,2192.6,2191.7,4.61976634]
[1750621021148,0.062,2192.5,2191.8,0.58739661]
[1750621021549,10.7637,2192.6,2191.3,6.72950626]
[1750621021550,9.962,2192.6,2191.3,6.72950626]
[1750621021890,14.91249195,2192.4,2191.3,2.166112]
[1750621022068,0.7637,2192.3,2191.4,2.094]
[1750621023475,0.7637,2192.3,2191.1,4.56381691]
[1750621023676,0.55,2192.0,2191.1,2.094]
[1750621023880,0.7637,2191.9,2191.2,0.74529199]
[1750621024083,0.7637,2191.7,2190.9,0.28983]
[1750621024472,0.062,2191.6,2190.9,0.28983]
[1750621025548,11.3181,2191.5,2190.6,2.094]
[1750621025748,0.062,2191.4,2190.6,2.094]
[1750621026476,0.55,2191.3,2190.4,2.094]
[1750621026712,0.7681,2191.2,2190.4,2.094]
[1750621027188,0.7681,2191.2,2190.5,0.04564714]
[1750621027397,10.7681,2191.2,2190.5,1.12704468]
[1750621027682,10.7681,2191.2,2190.4,2.094]
[1750621027683,10.8301,2191.2,2190.4,2.094]
[1750621027889,0.55,2191.1,2190.2,2.8827]
[1750621028045,0.55,2191.1,2190.2,7.4484384]
[1750621028250,10.7681,2191.2,2190.3,4.61112372]
[1750621028481,10.7681,2191.2,2190.4,0.74938237]
[1750621028683,0.612,2191.1,2190.2,2.094]
[1750621028982,0.612,2191.1,2190.2,6.6597458]
[1750621029148,0.612,2191.1,2190.2,2.094]
[1750621029572,0.14283357,2191.0,2190.2,2.094]
[1750621029781,0.612,2191.1,2190.2,2.094]
[1750621029979,0.7516,2190.9,2190.2,4.3129139]
[1750621030280,0.7516,2190.9,2190.2,2.26456521]
[1750621030484,0.7516,2190.9,2190.2,2.26456726]
[1750621030699,0.7516,2190.9,2190.2,2.2189139]
[1750621030700,0.062,2190.8,2190.2,2.2189139]
[1750621031493,0.7516,2190.9,2190.2,2.26456953]
[1750621031791,0.7516,2190.9,2190.3,4.56545948]
[1750621032163,0.7516,2190.9,2190.4,0.0456481]
[1750621032365,0.7516,2190.9,2190.3,4.56543014]
[1750621032565,0.7516,2190.9,2190.4,4.61102118]
[1750621032765,0.7516,2190.9,2190.5,4.56506024]
[1750621032964,0.7516,2190.9,2190.6,0.46107071]
[1750621034163,0.7516,2190.9,2190.6,5.0260182]
[1750621034369,0.7538,2191.6,2190.9,4.56424355]
[1750621034600,0.23855426,2191.6,2191.0,2.92433311]
[1750621034893,0.23855426,2191.6,2191.1,6.6508921]
[1750621035065,0.23855426,2191.6,2191.2,5.3079325]
[1750621035599,0.23855426,2191.6,2191.2,0.74425921]
[1750621035755,0.23855426,2191.6,2191.1,2.087]
[1750621036157,0.23855426,2191.6,2191.2,0.0572]
[1750621038287,0.23855426,2191.6,2191.1,6.65090677]
[1750621038488,0.23855426,2191.6,2191.0,4.5640733]
[1750621038794,0.23855426,2191.6,2191.0,4.56412565]
[1750621038962,0.23855426,2191.6,2191.2,0.0572]
[1750621039673,0.23855426,2191.6,2191.1,6.02603041]
[1750621040000,0.23855426,2191.6,2191.2,0.0572]
[1750621040196,0.23855426,2191.6,2191.1,6.02603041]
[1750621040776,0.23855426,2191.6,2191.2,0.0572]
[1750621040978,0.23855426,2191.6,2191.3,0.0572]
[1750621041179,0.23855426,2191.6,2191.2,5.1720224]
[1750621041500,0.23855426,2191.6,2191.2,0.60832304]
[1750621042570,0.23855426,2191.6,2191.1,1.46213257]
[1750621042878,0.23855426,2191.6,2191.1,6.02597407]
[1750621044902,0.23855426,2191.6,2191.2,4.56363888]
[1750621045099,0.23855426,2191.6,2191.3,4.56338791]
[1750621045277,0.23855426,2191.6,2191.4,0.45633879]
[1750621046172,0.23855426,2191.6,2191.5,0.0608]
[1750621048178,0.23855426,2191.6,2191.3,0.0608]
[1750621048510,0.23855426,2191.6,2191.2,4.56369846]
[1750621048674,0.23855426,2191.6,2191.2,4.56367958]
[1750621049005,0.23855426,2191.6,2191.4,0.0608]